bitfinex-derivatives/quotes_ETHF0:USTF0_20250620
["timestamp","ask_amount","ask_price","bid_price","bid_amount"]
[1750400515153,3.2078,2522.2,2522.1,9.9936]
[1750400515546,4.00067,2522.2,2522.1,9.2007]
[1750400517553,4.00067,2522.2,2522.1,7.9323]
[1750400518156,7.15708461,2522.2,2522.1,7.9323]
[1750400519251,6.36421461,2522.2,2521.7,4.65111]
[1750400519448,3.94939461,2521.9,2521.8,8.5687]
[1750400520154,0.79296,2522.0,2521.8,9.3617]
[1750400520356,0.79297,2521.9,2521.8,9.3617]
[1750400521553,0.79296,2522.0,2521.8,9.3617]
[1750400521953,0.79296,2522.0,2521.9,0.79297]
[1750400522251,4.62173461,2522.1,2521.8,8.5687]
[1750400522456,0.6724,2522.1,2522.0,0.79293]
[1750400522751,1.4653,2522.1,2522.0,0.79293]
[1750400522951,6.208,2522.1,2522.0,0.79293]
[1750400523357,6.208,2522.1,2522.0,8.72523]
[1750400523658,3.2078,2522.2,2522.1,0.7929]
[1750400523961,9.4158,2522.2,2522.1,8.7252]
[1750400524354,10.51650907,2522.2,2522.1,8.7252]
[1750400524858,11.30937907,2522.2,2522.1,8.7252]
[1750400525268,4.30850907,2522.2,2522.1,8.7252]
[1750400525460,11.30937907,2522.2,2522.1,8.7252]
[1750400526062,11.30937907,2522.2,2522.1,7.9323]
[1750400526860,14.46579368,2522.2,2522.1,7.9323]
[1750400527162,0.79293,2522.1,2521.9,0.79294]
[1750400527359,3.15641461,2522.0,2521.9,0.79294]
[1750400527562,3.94936461,2522.0,2521.9,0.79297]
[1750400528665,3.94936461,2522.0,2521.8,1.42937]
[1750400528864,3.15641461,2522.0,2521.9,0.79297]
[1750400529663,3.15641461,2522.0,2521.8,0.6364]
[1750400529865,3.94937461,2522.0,2521.8,9.36169]
[1750400530065,3.94937461,2522.0,2521.9,0.79297]
[1750400531067,3.15641461,2522.0,2521.9,0.79297]
[1750400532066,1.46802,2522.1,2522.0,0.79293]
[1750400532665,0.6751,2522.1,2522.0,0.79293]
[1750400533560,13.36510461,2522.2,2522.1,0.7929]
[1750400533561,3.2078,2522.2,2522.1,0.7929]
[1750400533760,10.51026764,2522.2,2522.1,8.7252]
[1750400534268,11.30313764,2522.2,2522.1,8.7252]
[1750400534664,8.09533764,2522.2,2522.1,8.7252]
[1750400534859,7.30246764,2522.2,2522.1,8.7252]
[1750400535066,8.09533764,2522.2,2522.1,8.7252]
[1750400535968,7.30246764,2522.2,2522.1,8.7252]
[1750400537163,1.10046764,2522.2,2522.1,8.7252]
[1750400537365,7.30246764,2522.2,2522.1,8.7252]
[1750400537672,7.30292662,2522.2,2522.1,8.7252]
[1750400537867,11.25221123,2522.2,2522.1,7.9323]
[1750400538464,11.25221123,2522.2,2522.1,8.7252]
[1750400538773,10.45934123,2522.2,2522.1,8.7252]
[1750400539369,11.25221123,2522.2,2522.1,7.9323]
[1750400539671,11.25222123,2522.2,2522.1,0.7929]
[1750400540371,10.45934123,2522.2,2522.1,0.7929]
[1750400541073,10.45934123,2522.2,2522.1,1.4601]
[1750400541775,10.45934123,2522.2,2522.1,9.3924]
[1750400542272,7.30292662,2522.2,2522.1,9.3924]
[1750400542775,7.30292662,2522.2,2522.1,10.7457]
[1750400542969,1.10092662,2522.2,2522.1,10.7457]
[1750400543270,7.30292662,2522.2,2522.1,10.7457]
[1750400543475,8.09579662,2522.2,2522.1,10.7457]
[1750400543867,8.09579662,2522.2,2522.1,9.9528]
[1750400544067,11.25221123,2522.2,2522.1,8.5995]
[1750400544584,0.7929,2522.1,2522.0,3.2078]
[1750400544774,1.89382662,2522.1,2522.0,3.2078]
[1750400544972,1.89382662,2522.1,2522.0,11.1401]
[1750400545670,1.10092662,2522.1,2522.0,11.93303]
[1750400545874,1.89382662,2522.1,2522.0,11.93303]
[1750400546581,1.10092662,2522.1,2522.0,11.93303]
[1750400547480,1.89382662,2522.1,2522.0,11.93303]
[1750400547882,1.10092662,2522.1,2522.0,11.93303]
[1750400548280,6.202,2522.2,2522.0,11.93303]
[1750400548281,6.202,2522.2,2522.1,0.7929]
[1750400548481,7.30459882,2522.2,2522.1,10.0143]
[1750400548686,7.30459882,2522.2,2522.1,10.6663]
[1750400548984,7.30359882,2522.2,2522.1,10.6663]
[1750400551087,1.10259882,2522.2,2522.1,10.6663]
[1750400551481,1.10259882,2522.2,2522.1,11.3142]
[1750400556992,1.10259882,2522.2,2522.1,14.47061461]
[1750400557194,6.195,2522.4,2522.1,14.47061461]
[1750400557195,30.297,2522.4,2522.3,0.79284]
[1750400557492,31.39900304,2522.4,2522.3,8.72514]
[1750400557791,1.10200304,2522.4,2522.3,8.72514]
[1750400559288,1.10200304,2522.4,2522.3,0.79284]
[1750400559494,1.10200304,2522.4,2522.3,8.72514]
[1750400560392,1.89481304,2522.4,2522.3,8.72514]
[1750400560596,1.10200304,2522.4,2522.3,8.72514]
[1750400563889,1.89481304,2522.4,2522.3,8.72514]
[1750400564090,1.10200304,2522.4,2522.3,8.72514]
[1750400566196,1.89481304,2522.4,2522.3,8.72514]
[1750400566790,1.10200304,2522.4,2522.3,8.72514]
[1750400570799,25.19800304,2522.4,2522.3,8.72514]
[1750400572095,6.195,2522.7,2522.4,7.9323]
[1750400572298,30.289,2522.7,2522.6,8.72505]
[1750400572798,48.9028,2522.9,2522.8,0.79268]
[1750400573000,79.1918,2522.9,2522.8,0.79268]
[1750400573201,46.48765,2522.9,2522.8,0.79268]
[1750400573500,75.983,2522.9,2522.8,0.79268]
[1750400574094,51.89,2522.9,2522.8,0.79268]
[1750400574497,79.13941461,2522.9,2522.7,3.8765]
[1750400574793,79.76641461,2522.9,2522.8,0.79268]
[1750400579003,49.47841461,2522.9,2522.8,0.79268]
[1750400579203,79.76141461,2522.9,2522.8,0.79268]
[1750400580302,45.695,2522.9,2522.8,0.79268]
[1750400580503,45.695,2522.9,2522.8,2.12598]
[1750400580504,75.977,2522.9,2522.8,2.12598]
[1750400582211,75.976,2522.9,2522.8,2.12598]
[1750400582812,6.194,2522.9,2522.8,10.05828]
[1750400583008,0.6402,2523.2,2523.1,0.79259]
[1750400583210,30.9212,2523.2,2523.1,0.79259]
[1750400583410,31.71376,2523.2,2523.0,0.7926]
[1750400583706,6.194,2523.2,2523.1,7.9323]
[1750400583902,31.07356,2523.2,2523.1,7.9323]
[1750400584101,32.16688634,2523.2,2523.0,1.44041]
[1750400584299,5.04233095,2523.1,2523.0,0.6478]
[1750400584709,5.04233095,2523.1,2523.0,8.5801]
[1750400587213,32.15791634,2523.1,2523.0,9.37272]
[1750400587511,35.31433095,2523.1,2523.0,8.5801]
[1750400588415,35.31433095,2523.1,2523.0,9.37272]
[1750400588715,35.31433095,2523.1,2523.0,8.5801]
[1750400589510,32.15791634,2523.1,2523.0,8.5801]
[1750400589716,35.31433095,2523.1,2523.0,8.5801]
[1750400591019,0.79265,2522.9,2522.7,3.2078]
[1750400591318,3.15641461,2522.8,2522.7,4.0005]
[1750400591707,3.94909461,2522.8,2522.7,11.1401]
[1750400592120,3.94909461,2522.8,2522.7,11.93281]
[1750400593719,3.15641461,2522.8,2522.7,11.93281]
[1750400594122,3.94909461,2522.8,2522.7,11.93281]
[1750400594521,3.94909461,2522.8,2522.7,11.1401]
[1750400594721,3.15641461,2522.8,2522.7,11.93281]
[1750400596116,0.79268,2522.8,2522.7,11.93281]
[1750400596321,0.79268,2522.8,2522.7,11.1401]
[1750400597421,5.0416311,2522.8,2522.7,4.00051]
[1750400597612,4.2489511,2522.8,2522.7,4.00051]
[1750400597812,4.24893553,2522.8,2522.7,4.00051]
[1750400598213,1.09252092,2522.8,2522.7,4.00051]
[1750400598923,1.88520092,2522.8,2522.7,4.00051]
[1750400600021,1.09252092,2522.8,2522.7,3.04907021]
[1750400600523,1.09252092,2522.8,2522.7,4.30817021]
[1750400600924,1.09252092,2522.8,2522.7,12.24047021]
[1750400615938,1.09252092,2522.8,2522.7,13.19191]
[1750400616722,1.09252092,2522.8,2522.7,16.34832461]
[1750400618134,0.79256,2523.2,2523.1,0.79259]
[1750400618332,6.97156,2523.2,2523.1,0.79259]
[1750400618836,6.97156,2523.2,2523.0,0.79262]
[1750400620134,2.3709362,2523.4,2522.9,9.03374461]
[1750400620335,24.069,2523.4,2523.3,0.79253]
[1750400620637,31.04051,2523.4,2523.2,0.79253]
[1750400620831,31.04051,2523.4,2523.2,1.48043]
[1750400621031,0.79253,2523.3,2523.2,1.48043]
[1750400621234,0.79253,2523.3,2523.0,1.305]
[1750400621235,3.94894461,2523.3,2523.1,0.79257]
[1750400621431,4.60414461,2523.3,2523.1,8.72487]
[1750400621629,4.60414461,2523.3,2523.1,0.79257]
[1750400622336,4.60414461,2523.3,2523.2,0.79256]
[1750400623034,1.44773,2523.3,2523.2,0.79256]
[1750400623237,0.6552,2523.3,2523.2,0.79256]
[1750400625139,1.44773,2523.3,2523.2,0.79256]
[1750400625539,1.44773,2523.3,2523.1,0.79257]
[1750400625740,1.44773,2523.3,2523.2,7.9323]
[1750400626142,1.44773,2523.3,2523.1,0.79257]
[1750400626340,1.44773,2523.3,2523.2,0.79256]
[1750400626541,4.60414461,2523.3,2523.2,0.79256]
[1750400628643,4.60414461,2523.3,2523.1,0.79256]
[1750400628848,4.60414461,2523.3,2523.1,8.72486]
[1750400629044,4.60414461,2523.3,2523.1,0.79256]
[1750400629346,3.81161461,2523.3,2523.2,0.79256]
[1750400630145,4.89410064,2523.3,2523.2,0.79256]
[1750400631455,5.68663064,2523.3,2523.2,0.79256]
[1750400632341,4.89410064,2523.3,2523.2,0.79256]
[1750400632543,5.68663064,2523.3,2523.2,0.79256]
[1750400633545,4.89410064,2523.3,2523.2,0.79256]
[1750400634045,5.68663064,2523.3,2523.1,0.79257]
[1750400634248,1.08248603,2523.2,2523.1,8.72487]
[1750400635150,1.87504603,2523.2,2523.1,8.72487]
[1750400635449,0.79264,2523.0,2522.8,0.79267]
[1750400635649,0.6818,2522.9,2522.8,0.79267]
[1750400636049,1.47445,2522.9,2522.8,8.72497]
[1750400636744,1.47445,2522.9,2522.8,7.9323]
[1750400636945,1.47445,2522.9,2522.8,8.72498]
[1750400637548,1.47445,2522.9,2522.8,7.9323]
[1750400637753,1.47445,2522.9,2522.8,8.72498]
[1750400637953,31.71345,2522.9,2522.8,8.72498]
[1750400638153,31.71345,2522.9,2522.8,7.9323]
[1750400638450,32.79599865,2522.9,2522.8,7.9323]
[1750400639045,31.71345,2522.9,2522.8,8.72498]
[1750400639242,0.79249,2523.4,2522.9,1.98164]
[1750400639547,31.32157667,2523.3,2523.2,0.79256]
[1750400639747,31.32157667,2523.3,2523.2,8.72486]
[1750400639951,7.26157667,2523.3,2523.2,8.72486]
[1750400640454,1.08257667,2523.3,2523.2,11.88127461]
[1750400642941,6.97146,2523.5,2523.4,0.79249]
[1750400643151,8.05361312,2523.5,2523.4,0.79249]
[1750400643354,1.87461312,2523.5,2523.4,0.79249]
[1750400643546,1.87461312,2523.5,2523.4,2.14869]
[1750400644358,1.87461312,2523.5,2523.4,1.3562]
[1750400646552,1.87461312,2523.5,2523.4,2.14869]
[1750400647451,1.87461312,2523.5,2523.4,10.08099]
[1750400648651,1.08215312,2523.5,2523.4,10.08099]
[1750400649451,1.08215312,2523.5,2523.3,3.2078]
[1750400649658,1.87464312,2523.4,2523.3,3.2078]
[1750400650049,1.87464312,2523.4,2523.3,11.93263]
[1750400650358,1.08215312,2523.4,2523.3,11.93263]
[1750400650553,1.87464312,2523.4,2523.3,11.93263]
[1750400650862,1.87464312,2523.4,2523.3,4.00033]
[1750400651548,1.87464312,2523.4,2523.3,3.2078]
[1750400652150,1.87464312,2523.4,2523.3,4.00033]
[1750400652357,1.87464312,2523.4,2523.3,3.2078]
[1750400653358,1.87464312,2523.4,2523.3,11.93263]
[1750400654366,1.87464312,2523.4,2523.3,11.1401]
[1750400655255,1.87464312,2523.4,2523.3,12.4668]
[1750400655559,1.87464312,2523.4,2523.3,13.88213]
[1750400656756,1.08215312,2523.4,2523.3,13.88213]
[1750400656961,6.8486,2523.7,2523.4,0.79249]
[1750400657157,6.172,2523.7,2523.4,10.08069]
[1750400657362,0.79248,2523.5,2523.4,10.08069]
[1750400657568,0.79245,2523.6,2523.5,8.72476]
[1750400658161,0.79245,2523.6,2523.5,0.79246]
[1750400659359,6.172,2523.7,2523.5,8.72476]
[1750400659564,0.79243,2523.6,2523.5,0.79246]
[1750400660156,0.79243,2523.6,2523.5,8.72476]
[1750400660355,0.79243,2523.6,2523.5,7.9323]
[1750400661363,0.79243,2523.6,2523.5,9.2932]
[1750400663870,6.172,2523.7,2523.5,10.08566]
[1750400664069,6.96443,2523.7,2523.6,7.9323]
[1750400665069,4.49,2523.9,2523.6,9.2129]
[1750400665271,0.79239,2523.8,2523.7,7.9323]
[1750400665476,3.8593,2523.9,2523.7,8.7247]
[1750400665677,4.65166,2523.9,2523.7,8.7247]
[1750400665878,0.79237,2523.8,2523.7,8.7247]
[1750400666278,3.2078,2523.9,2523.8,7.9323]
[1750400666471,3.2078,2523.9,2523.8,8.72467]
[1750400666967,3.2078,2523.9,2523.8,10.00527]
[1750400667673,4.00014,2523.9,2523.8,9.2129]
[1750400667879,4.00014,2523.9,2523.8,7.9323]
[1750400668681,0.79239,2523.8,2523.5,1.3594]
[1750400668880,0.79239,2523.8,2523.6,0.79243]
[1750400669176,0.79239,2523.8,2523.7,7.9323]
[1750400671782,1.43819,2523.8,2523.7,7.9323]
[1750400672475,1.43819,2523.8,2523.6,0.79243]
[1750400672677,1.43819,2523.8,2523.7,7.9323]
[1750400672974,1.43819,2523.8,2523.6,0.79243]
[1750400673175,1.43819,2523.8,2523.7,7.9323]
[1750400673376,0.96266029,2523.8,2523.7,8.55149072]
[1750400673586,0.96266029,2523.8,2523.7,0.61919072]
[1750400674582,1.58586029,2523.8,2523.7,0.61919072]
[1750400675783,1.58586029,2523.8,2523.7,1.41159072]
[1750400675985,1.58586029,2523.8,2523.7,0.61919072]
[1750400676882,0.79242,2523.7,2523.5,1.47535]
[1750400677077,0.79242,2523.7,2523.6,8.55149584]
[1750400677278,1.58585029,2523.8,2523.6,9.34392584]
[1750400677477,1.58585029,2523.8,2523.7,0.61919584]
[1750400678381,1.41559,2523.8,2523.7,0.61919584]
[1750400678575,6.171,2523.8,2523.7,9.34389584]
[1750400678774,6.171,2523.8,2523.7,10.68499584]
[1750400681184,6.171,2523.8,2523.7,10.0658]
[1750400681377,6.171,2523.8,2523.7,10.68496986]
[1750400682185,6.171,2523.8,2523.7,9.34386986]
[1750400682378,0.79236,2523.9,2523.7,1.41156986]
[1750400682575,0.79236,2523.9,2523.8,0.61916986]
[1750400682779,10.11577461,2523.9,2523.8,0.61916986]
[1750400683284,9.32341461,2523.9,2523.8,0.61916986]
[1750400683485,10.11578461,2523.9,2523.8,0.61916986]
[1750400684490,13.32358461,2523.9,2523.8,0.61916986]
[1750400684685,0.79243,2523.6,2523.5,0.6829]
[1750400684991,0.79243,2523.6,2523.5,10.02687373]
[1750400685288,3.94883461,2523.7,2523.5,10.02687373]
[1750400685488,3.94883461,2523.7,2523.6,0.61921373]
[1750400685694,1.86669155,2523.7,2523.6,1.41164521]
[1750400685894,1.86669155,2523.7,2523.6,0.61921521]
[1750400686284,1.86669155,2523.7,2523.6,0.61921101]
[1750400686890,1.07427155,2523.7,2523.6,1.41164101]
[1750400687294,1.86667155,2523.7,2523.6,1.41164101]
[1750400687695,1.86667155,2523.7,2523.6,1.4116192]
[1750400687896,1.86667155,2523.7,2523.6,1.41162165]
[1750400688394,1.86667155,2523.7,2523.6,1.37349353]
[1750400688892,1.86667155,2523.7,2523.6,1.37349496]
[1750400689401,1.86667155,2523.7,2523.6,1.37357929]
[1750400689594,1.86667155,2523.7,2523.6,0.58114929]
[1750400689892,0.79243,2523.6,2523.5,1.47536]
[1750400690094,0.79243,2523.6,2523.5,2.05651077]
[1750400690290,6.167,2523.6,2523.5,9.19642088]
[1750400690495,6.95943,2523.6,2523.5,9.98888088]
[1750400690694,6.95943,2523.6,2523.5,9.40766]
[1750400690888,6.95943,2523.6,2523.5,9.9888805]
[1750400691193,8.03048557,2523.6,2523.5,9.98894753]
[1750400692195,7.23805557,2523.6,2523.5,9.98894753]
[1750400692396,8.03048557,2523.6,2523.5,9.40766]
[1750400693090,7.23805557,2523.6,2523.5,9.40766]
[1750400693295,8.03048557,2523.6,2523.5,9.40766]
[1750400694097,8.03048557,2523.6,2523.5,0.6829]
[1750400694296,8.03048557,2523.6,2523.5,1.47536]
[1750400695295,8.03048557,2523.6,2523.5,0.6829]
[1750400695497,8.03048557,2523.6,2523.5,1.47536]
[1750400696498,7.55492331,2523.6,2523.5,2.05495481]
[1750400696697,7.55492331,2523.6,2523.5,2.0549548]
[1750400696997,7.55492331,2523.6,2523.5,2.05495219]
[1750400697294,7.55492331,2523.6,2523.5,1.47536]
[1750400699197,8.03048557,2523.6,2523.5,1.47536]
[1750400699501,7.23805557,2523.6,2523.5,1.47536]
[1750400700187,8.03048557,2523.6,2523.5,1.47536]
[1750400700698,7.23805557,2523.6,2523.5,2.02014431]
[1750400700887,8.03048557,2523.6,2523.5,2.02014431]
[1750400701090,8.03048557,2523.6,2523.5,1.47536]
[1750400701400,7.23805557,2523.6,2523.5,2.02013701]
[1750400701595,7.23805557,2523.6,2523.5,1.47536]
[1750400701795,1.07105557,2523.6,2523.5,1.47536]
[1750400702100,6.8435,2523.8,2523.5,1.47536]
[1750400702101,6.167,2523.8,2523.7,0.7924]
[1750400702301,7.23887715,2523.8,2523.7,4.0002]
[1750400702708,7.23887715,2523.8,2523.7,4.58210934]
[1750400703000,7.23887715,2523.8,2523.7,4.58210752]
[1750400703202,7.23887715,2523.8,2523.7,4.58210261]
[1750400703691,7.23887715,2523.8,2523.7,4.0002]
[1750400704494,7.23890005,2523.8,2523.7,4.0002]
[1750400705701,1.07190005,2523.8,2523.7,4.0002]
[1750400705903,31.27890005,2523.8,2523.7,4.0002]
[1750400706401,32.07127005,2523.8,2523.7,3.2078]
[1750400707099,31.27890005,2523.8,2523.7,4.0002]
[1750400707407,1.07190005,2523.8,2523.7,5.3227]
[1750400707597,31.27790005,2523.8,2523.7,5.3227]
[1750400708401,1.07190005,2523.8,2523.7,5.3227]
[1750400708603,31.27790005,2523.8,2523.7,5.3227]
[1750400709609,31.27790005,2523.8,2523.7,5.87847637]
[1750400710804,31.27790005,2523.8,2523.7,5.3227]
[1750400711008,31.27790005,2523.8,2523.7,5.86768761]
[1750400711213,31.27790005,2523.8,2523.7,5.86770278]
[1750400711710,31.27790005,2523.8,2523.7,5.3227]
[1750400712106,1.07190005,2523.8,2523.7,13.255]
[1750400712309,31.27290005,2523.8,2523.7,13.255]
[1750400712910,0.79233,2524.0,2523.9,0.79234]
[1750400713107,32.06458569,2524.0,2523.9,0.79234]
[1750400713506,32.06458569,2524.0,2523.9,2.17314]
[1750400713710,32.06458569,2524.0,2523.9,1.3808]
[1750400713908,32.06458569,2524.0,2523.9,2.17314]
[1750400714314,31.27225569,2524.0,2523.9,2.17314]
[1750400714614,31.27225569,2524.0,2523.9,2.72360141]
[1750400715112,32.06456569,2524.0,2523.9,2.72360141]
[1750400715516,32.06456569,2524.0,2523.9,2.72358077]
[1750400715716,31.27225569,2524.0,2523.9,2.72358077]
[1750400717216,31.27225569,2524.0,2523.9,1.34278077]
[1750400717418,1.07125569,2524.0,2523.9,1.34278077]
[1750400717621,31.26925569,2524.0,2523.9,1.34278077]
[1750400718011,30.198,2524.0,2523.9,1.34278077]
[1750400718210,31.26918402,2524.0,2523.9,0.55044077]
[1750400718514,31.26918402,2524.0,2523.9,0.54412164]
[1750400718715,32.06149402,2524.0,2523.9,0.54412164]
[1750400719919,35.21790863,2524.0,2523.9,0.54412164]
[1750400720915,0.79234,2523.9,2523.8,3.2078]
[1750400721215,1.86352402,2523.9,2523.8,11.68990462]
[1750400722223,1.86352402,2523.9,2523.8,11.68990631]
[1750400722422,1.86352402,2523.9,2523.8,11.68990888]
[1750400723522,1.86352402,2523.9,2523.8,11.68988448]
[1750400723720,2.52722402,2523.9,2523.8,11.68988448]
[1750400724521,2.52722402,2523.9,2523.8,3.75758448]
[1750400724718,2.52722402,2523.9,2523.8,3.2078]
[1750400725116,2.52722402,2523.9,2523.8,3.75761856]
[1750400725317,1.45604,2523.9,2523.8,0.54985193]
[1750400725524,3.09005357,2523.9,2523.5,3.8457]
[1750400725723,25.89672357,2523.8,2523.7,7.9323]
[1750400726029,25.89672357,2523.8,2523.7,8.48215296]
[1750400726232,25.89672357,2523.8,2523.7,0.54985296]
[1750400726532,0.7924,2523.7,2523.6,0.79242]
[1750400726729,0.7924,2523.7,2523.6,1.3422745]
[1750400726922,0.7924,2523.7,2523.6,8.4821545]
[1750400727123,1.86386651,2523.7,2523.6,8.4821545]
[1750400727324,1.86386651,2523.7,2523.6,8.48215611]
[1750400727617,1.86386651,2523.7,2523.6,9.27458611]
[1750400728232,1.86386651,2523.7,2523.6,8.48215611]
[1750400728623,1.86386651,2523.7,2523.6,8.4822396]
[1750400728829,1.86386651,2523.7,2523.6,7.9323]
[1750400729327,1.86386651,2523.7,2523.5,0.6379]
[1750400729328,0.79243,2523.6,2523.5,0.6379]
[1750400729629,0.79243,2523.6,2523.2,4.00034]
[1750400729630,0.79251,2523.4,2523.2,4.00034]
[1750400729831,24.82451,2523.4,2523.3,0.6733]
[1750400730032,25.89611919,2523.4,2523.3,8.6056]
[1750400730332,25.89611919,2523.4,2523.3,9.39813]
[1750400730528,24.82451,2523.4,2523.3,9.39813]
[1750400731933,24.82451,2523.4,2523.3,8.6056]
[1750400732722,24.82451,2523.4,2523.3,9.39813]
[1750400733638,0.6641,2523.7,2523.3,8.6056]
[1750400733837,31.26663607,2523.6,2523.5,7.9323]
[1750400734030,32.05809607,2523.6,2523.5,8.47597235]
[1750400734227,32.05809607,2523.6,2523.5,0.54367235]
[1750400734428,0.79246,2523.5,2523.4,1.3621]
[1750400734730,0.79246,2523.5,2523.4,8.47585396]
[1750400734731,1.86409607,2523.5,2523.4,8.47585396]
[1750400735240,1.86409607,2523.5,2523.4,8.47585655]
[1750400735928,1.86409607,2523.5,2523.4,7.9323]
[1750400736434,1.86409607,2523.5,2523.4,8.72479]
[1750400736835,1.86409607,2523.5,2523.4,9.2757952]
[1750400737335,1.86409607,2523.5,2523.4,9.27579502]
[1750400738131,1.07163607,2523.5,2523.4,9.27571182]
[1750400738637,30.98644,2523.6,2523.5,0.79246]
[1750400738839,1.86362207,2523.6,2523.5,1.34338182]
[1750400739044,32.05862207,2523.6,2523.5,1.34338182]
[1750400739229,0.79246,2523.5,2523.4,0.79247]
[1750400739430,30.98746,2523.5,2523.4,8.48315837]
[1750400739630,30.195,2523.5,2523.4,9.27564837]
[1750400739937,30.98746,2523.5,2523.4,9.27564837]
[1750400740137,30.98746,2523.5,2523.4,8.72479]
[1750400740335,30.98746,2523.5,2523.4,9.27564937]
[1750400741241,30.98746,2523.5,2523.4,8.48315937]
[1750400741431,30.98746,2523.5,2523.4,7.9323]
[1750400741633,30.98746,2523.5,2523.4,8.48273996]
[1750400742040,30.98746,2523.5,2523.4,0.55043996]
[1750400742335,32.05851226,2523.5,2523.4,0.55043996]
[1750400742535,32.05849692,2523.5,2523.4,0.55043996]
[1750400742741,30.98746,2523.5,2523.4,0.55043996]
[1750400742942,32.05848978,2523.5,2523.4,0.55043996]
[1750400743141,30.98746,2523.5,2523.4,0.55043996]
[1750400743342,0.79249,2523.4,2523.3,1.46582]
[1750400743539,0.79249,2523.4,2523.3,2.01619679]
[1750400743741,0.79249,2523.4,2523.3,9.15597679]
[1750400743940,0.79249,2523.4,2523.3,9.94850679]
[1750400744435,0.79249,2523.4,2523.3,9.15597679]
[1750400745035,0.79249,2523.4,2523.3,8.6056]
[1750400745244,0.79249,2523.4,2523.3,9.15605524]
[1750400745944,0.79249,2523.4,2523.3,8.6056]
[1750400747144,3.94890461,2523.4,2523.3,0.6733]
[1750400747343,0.79253,2523.3,2523.2,3.2078]
[1750400747549,3.2078,2523.6,2523.3,7.9323]
[1750400747747,1.9919,2523.7,2523.2,6.36421461]
[1750400747748,1.07239291,2523.5,2523.4,0.79249]
[1750400747942,6.159,2523.9,2523.6,7.9323]
[1750400748140,0.6801,2524.2,2523.9,7.9323]
[1750400748141,30.187,2524.2,2523.9,7.9323]
[1750400748340,1.86444676,2524.1,2523.9,8.72463]
[1750400748539,1.98034,2524.6,2523.5,2.66394]
[1750400748540,2.37495596,2524.6,2524.1,7.9323]
[1750400748737,6.159,2524.7,2524.5,7.9323]
[1750400749040,6.159,2524.7,2524.6,9.2954]
[1750400749235,0.23554676,2525.1,2524.6,15.65961461]
[1750400749438,0.23554676,2525.1,2524.9,7.9323]
[1750400749439,1.02750676,2525.1,2524.9,7.9323]
[1750400749637,0.79199,2525.0,2524.9,7.9323]
[1750400749836,6.94999,2525.0,2524.9,7.9323]
[1750400750642,9.31441461,2525.0,2524.6,3.2078]
[1750400750943,0.79216,2524.5,2524.3,3.2078]
[1750400751247,0.79215,2524.5,2524.3,12.4693]
[1750400751544,33.38141461,2524.6,2524.3,12.4693]
[1750400751743,0.79218,2524.5,2524.4,7.9323]
[1750400751938,0.79218,2524.5,2524.4,9.2615]
[1750400752342,0.79218,2524.5,2524.4,7.9323]
[1750400752543,0.79218,2524.4,2524.3,3.2078]
[1750400752844,3.94859461,2524.4,2524.3,3.2078]
[1750400753042,0.79218,2524.4,2524.3,3.2078]
[1750400755340,3.94859461,2524.4,2524.3,3.2078]
[1750400755543,0.79224,2524.2,2524.1,2.012]
[1750400755946,0.79224,2524.2,2524.1,9.9443]
[1750400756949,3.94865461,2524.2,2524.1,1.3292]
[1750400757250,3.94865461,2524.2,2524.1,1.94827153]
[1750400757640,0.79228,2524.1,2524.0,3.2078]
[1750400757841,0.79228,2524.1,2524.0,3.82688841]
[1750400758039,0.79228,2524.1,2524.0,11.75918841]
[1750400759139,0.79228,2524.1,2524.0,11.69941274]
[1750400759840,0.79228,2524.1,2524.0,3.76711274]
[1750400760151,0.79237,2523.8,2523.7,0.6482]
[1750400760349,0.79237,2523.8,2523.7,10.4720064]
[1750400760548,0.79237,2523.8,2523.7,10.47200531]
[1750400760747,0.79237,2523.8,2523.7,10.47200501]
[1750400761050,0.79237,2523.8,2523.7,10.47213319]
[1750400761248,0.79237,2523.8,2523.7,10.47213152]
[1750400761444,0.79237,2523.8,2523.7,9.922]
[1750400761647,0.79237,2523.8,2523.7,11.26453098]
[1750400762742,0.79237,2523.8,2523.7,10.47213098]
[1750400763046,0.79237,2523.8,2523.7,10.7144]
[1750400763254,0.79237,2523.8,2523.7,10.47213151]
[1750400763453,0.79237,2523.8,2523.7,11.26453143]
[1750400763842,0.79237,2523.8,2523.7,10.47213143]
[1750400764453,0.79237,2523.8,2523.7,11.26453143]
[1750400764956,0.79236,2523.9,2523.8,0.79235]
[1750400765249,0.79236,2523.9,2523.8,9.83433143]
[1750400765453,11.34547,2524.2,2523.8,10.50663143]
[1750400765454,9.3648,2524.2,2523.8,10.50663143]
[1750400765651,0.79231,2524.1,2524.0,7.9323]
[1750400765851,6.94931,2524.1,2524.0,10.62664143]
[1750400766248,6.94931,2524.1,2524.0,9.2842]
[1750400766450,6.94931,2524.1,2524.0,9.83342336]
[1750400767457,0.79231,2524.1,2524.0,10.62573336]
[1750400767759,6.94928,2524.1,2524.0,10.62573336]
[1750400767961,6.94928,2524.1,2524.0,9.83342336]
[1750400768459,0.79228,2524.1,2524.0,9.83342336]
[1750400768654,6.94928,2524.1,2524.0,10.62573336]
[1750400768959,6.94928,2524.1,2524.0,10.61384735]
[1750400769159,6.94928,2524.1,2524.0,10.07651]
[1750400769451,0.79228,2524.1,2524.0,10.61395842]
[1750400769653,24.043,2524.2,2524.1,0.79228]
[1750400769847,30.99224,2524.2,2524.1,2.67802842]
[1750400770043,30.99224,2524.2,2524.1,1.3483]
[1750400770254,30.99224,2524.2,2524.1,2.67802728]
[1750400770462,30.99224,2524.2,2524.1,1.88574728]
[1750400770656,30.98924,2524.2,2524.1,1.88574728]
[1750400770851,30.98924,2524.2,2524.1,1.91192704]
[1750400771154,30.98924,2524.2,2524.1,1.9119268]
[1750400771556,30.98924,2524.2,2524.1,1.91192701]
[1750400771757,30.98924,2524.2,2524.1,1.91192781]
[1750400772157,30.98924,2524.2,2524.1,1.91203177]
[1750400772559,30.98924,2524.2,2524.1,1.91203224]
[1750400772961,30.98924,2524.2,2524.1,1.91203329]
[1750400773356,30.98924,2524.2,2524.1,1.91229154]
[1750400773558,30.98924,2524.2,2524.1,1.91229038]